bitfinex/quotes_BTCUSD_20220207
["timestamp","ask_amount","ask_price","bid_price","bid_amount"]
[1644244760338,5.93906568,43200.0,43199.0,13.17674199]
[1644244760645,0.00291125,43208.0,43199.0,13.17674199]
[1644244760646,0.3332394,43242.0,43231.0,1.3]
[1644244760842,0.00831956,43288.0,43271.0,5.67883721]
[1644244761043,0.27327109,43295.0,43272.0,9.74848121]
[1644244761044,0.2544172,43294.0,43272.0,9.74848121]
[1644244761240,0.2544172,43294.0,43274.0,0.25043211]
[1644244761241,0.0012484,43290.0,43274.0,0.25043211]
[1644244761452,0.0012484,43290.0,43289.0,0.22600689]
[1644244761702,0.253449,43275.0,43272.0,3.23483359]
[1644244761900,0.0012484,43290.0,43273.0,0.04216]
[1644244762208,0.06935876,43296.0,43274.0,1.905981]
[1644244762406,3.42452118,43300.0,43275.0,1.38249329]
[1644244762408,0.02969052,43294.0,43275.0,1.38249329]
[1644244762597,0.02969052,43294.0,43276.0,1.28249329]
[1644244762598,0.37019991,43277.0,43276.0,1.28249329]
[1644244762803,0.1,43276.0,43256.0,0.17991292]
[1644244763000,1.1,43275.0,43249.0,2.33478016]
[1644244763199,0.05,43269.0,43249.0,2.33478016]
[1644244763499,0.3,43273.0,43248.0,0.048]
[1644244763701,0.000824,43276.0,43263.0,0.4]
[1644244763901,0.000824,43276.0,43263.0,0.005]
[1644244764100,0.000824,43276.0,43264.0,0.005]
[1644244764310,0.000824,43276.0,43258.0,0.299]
[1644244764311,0.06576984,43269.0,43258.0,0.299]
[1644244764502,0.24240524,43259.0,43251.0,0.02]
[1644244764800,0.0428,43274.0,43251.0,0.02]
[1644244765001,0.00669284,43276.0,43251.0,0.02]
[1644244765002,0.0428,43275.0,43251.0,0.02]
[1644244765203,0.00065037,43257.0,43251.0,0.02]
[1644244765456,0.00065037,43257.0,43256.0,0.005]
[1644244765654,0.00260107,43264.0,43256.0,0.005]
[1644244765854,0.00260107,43264.0,43263.0,0.005]
[1644244766053,0.000824,43276.0,43259.0,0.05]
[1644244766259,0.000824,43276.0,43260.0,0.005]
[1644244766454,0.06797001,43275.0,43260.0,0.3]
[1644244766656,0.000824,43276.0,43260.0,0.3]
[1644244766657,0.000824,43276.0,43264.0,0.05]
[1644244766956,0.000824,43276.0,43274.0,0.005]
[1644244767155,0.0161432,43278.0,43271.0,0.05]
[1644244767353,0.00135,43275.0,43255.0,0.1]
[1644244767553,0.00135,43275.0,43256.0,0.4]
[1644244767754,0.00135,43275.0,43267.0,0.02086519]
[1644244768256,0.33397798,43274.0,43267.0,0.02086519]
[1644244768456,0.33397798,43274.0,43248.0,0.0502547]
[1644244768457,0.845,43269.0,43231.0,1.32]
[1644244768653,0.845,43269.0,43231.0,0.59632078]
[1644244768654,0.06998454,43238.0,43231.0,0.59632078]
[1644244768854,0.55252839,43268.0,43221.0,3.26677448]
[1644244768855,0.23811322,43237.0,43221.0,3.26677448]
[1644244769094,0.3388,43236.0,43221.0,3.26677448]
[1644244769291,0.27321142,43229.0,43205.0,0.01]
[1644244769491,0.04,43232.0,43206.0,0.01]
[1644244769492,0.3388,43228.0,43206.0,0.01]
[1644244769789,0.3388,43228.0,43212.0,1.353532]
[1644244769790,0.04,43225.0,43212.0,1.353532]
[1644244769992,0.04,43225.0,43212.0,0.80990224]
[1644244769993,0.04,43222.0,43212.0,0.80990224]
[1644244770189,0.3388,43221.0,43213.0,6.04101]
[1644244770389,0.08288921,43225.0,43201.0,0.02]
[1644244770390,1.0788,43220.0,43201.0,0.02]
[1644244770592,0.01718421,43225.0,43201.0,0.02]
[1644244770790,0.2225455,43219.0,43201.0,0.02]
[1644244770989,0.0388,43218.0,43209.0,0.035]
[1644244771391,0.325891,43217.0,43209.0,0.035]
[1644244771595,0.0388,43223.0,43209.0,0.035]
[1644244771791,0.325891,43217.0,43209.0,0.035]
[1644244771993,0.3388,43216.0,43209.0,0.035]
[1644244772293,0.0388,43216.0,43211.0,0.00053285]
[1644244772692,2.004943,43215.0,43211.0,0.00053285]
[1644244773143,0.05,43229.0,43214.0,0.05]
[1644244773338,0.05,43229.0,43210.0,0.29553285]
[1644244773339,0.00085729,43236.0,43215.0,0.4]
[1644244773538,0.00085729,43236.0,43215.0,0.35]
[1644244773837,0.00085729,43236.0,43225.0,0.05]
[1644244774038,0.00085729,43236.0,43216.0,0.16414769]
[1644244774039,0.00085729,43236.0,43232.0,0.05]
[1644244774240,0.00085729,43236.0,43231.0,0.05]
[1644244774441,0.00085729,43236.0,43221.0,0.3]
[1644244774442,0.00085729,43236.0,43222.0,0.38054103]
[1644244774639,0.00085729,43236.0,43217.0,0.00502936]
[1644244774838,0.00085729,43236.0,43221.0,0.05]
[1644244774839,0.0786,43234.0,43221.0,0.05]
[1644244775039,0.0786,43234.0,43218.0,0.05]
[1644244775242,0.0786,43234.0,43221.0,0.05]
[1644244775440,0.0786,43234.0,43233.0,0.038]
[1644244775647,0.00085729,43236.0,43235.0,0.05]
[1644244775648,7.29e-06,43236.0,43235.0,0.05]
[1644244775845,7.29e-06,43236.0,43235.0,0.35]
[1644244776042,2.807466,43250.0,43237.0,0.23557721]
[1644244776243,0.20936955,43245.0,43238.0,0.05]
[1644244776443,0.20936955,43245.0,43235.0,0.0388]
[1644244776444,0.012,43243.0,43235.0,0.0388]
[1644244776714,0.012,43239.0,43235.0,0.038]
[1644244776911,0.012,43243.0,43235.0,0.038]
[1644244777112,0.25872196,43225.0,43220.0,0.0388]
[1644244777314,0.25872196,43225.0,43209.0,1.74560647]
[1644244777517,0.05,43220.0,43209.0,1.73853736]
[1644244777712,0.02180829,43216.0,43209.0,0.00072907]
[1644244777912,0.01680829,43216.0,43210.0,0.23012283]
[1644244778114,0.3,43226.0,43210.0,0.23012283]
[1644244778115,0.07002409,43218.0,43210.0,0.23012283]
[1644244778316,0.05,43217.0,43210.0,0.23012283]
[1644244778614,0.00262172,43225.0,43215.0,0.05]
[1644244778814,0.00262172,43225.0,43210.0,0.22512283]
[1644244779013,0.05,43224.0,43210.0,0.22512283]
[1644244779216,0.00262172,43225.0,43223.0,0.05]
[1644244779414,0.05,43238.0,43219.0,0.05]
[1644244779613,0.25803439,43230.0,43212.0,0.05]
[1644244779815,0.24608367,43241.0,43212.0,0.05]
[1644244779816,0.42,43244.0,43231.0,0.05]
[1644244780015,2.82674774,43250.0,43246.0,0.05]
[1644244780216,0.05,43247.0,43232.0,0.00494015]
[1644244780440,0.05,43247.0,43231.0,0.05]
[1644244780441,0.1,43247.0,43231.0,0.3]
[1644244780640,0.1,43247.0,43231.0,0.35]
[1644244780841,0.38755198,43247.0,43245.0,0.26754282]
[1644244781040,0.38755198,43247.0,43224.0,0.300567]
[1644244781245,0.05,43234.0,43224.0,0.3]
[1644244781440,0.33755198,43247.0,43223.0,0.3]
[1644244781441,0.05,43230.0,43223.0,0.3]
[1644244781640,0.05,43233.0,43214.0,0.3]
[1644244781941,0.00066104,43232.0,43226.0,0.05]
[1644244782141,0.00066104,43232.0,43224.0,0.02066835]
[1644244782840,0.05,43227.0,43224.0,0.02066835]
[1644244783039,0.05,43225.0,43224.0,0.02066835]
[1644244783240,0.05,43225.0,43224.0,0.01566835]
[1644244783442,0.00066107,43232.0,43224.0,0.01566835]
[1644244784095,0.06988843,43233.0,43219.0,0.3]
[1644244784296,0.05,43226.0,43216.0,0.00104543]
[1644244784494,0.05,43229.0,43216.0,0.00104543]
[1644244784694,0.0388,43245.0,43224.0,0.05]
[1644244784895,0.0388,43246.0,43225.0,0.3]
[1644244785094,0.07997092,43234.0,43232.0,0.01988843]
[1644244785295,0.0388,43245.0,43232.0,0.01988843]
[1644244785495,0.22989758,43233.0,43232.0,0.01988843]
[1644244785795,0.0388,43245.0,43232.0,0.01988843]
[1644244786295,1.81411979,43249.0,43232.0,0.01988843]
[1644244786496,1.81411979,43249.0,43236.0,0.05]
[1644244786897,1.81411979,43249.0,43232.0,0.01988843]
[1644244786898,0.56335542,43238.0,43232.0,0.01988843]
[1644244787097,0.56335542,43238.0,43216.0,0.30104543]
[1644244787098,0.8,43236.0,43216.0,0.30104543]
[1644244787297,0.8338,43236.0,43216.0,0.00104543]
[1644244787497,0.01988843,43233.0,43216.0,0.00104543]
[1644244787942,0.01988843,43233.0,43191.0,0.07]
[1644244787943,1.8,43230.0,43191.0,0.07]
[1644244788145,1.0,43227.0,43191.0,0.07]
[1644244788441,1.0,43227.0,43196.0,0.05]
[1644244788442,0.01678469,43216.0,43196.0,0.05]
[1644244788644,0.0388,43215.0,43195.0,0.05]
[1644244788844,0.25052614,43215.0,43195.0,0.05]
[1644244789041,0.0388,43215.0,43207.0,0.05]
[1644244789242,0.0388,43215.0,43206.0,0.00073064]
[1644244789446,0.325891,43214.0,43206.0,0.00073064]
[1644244789643,0.0388,43213.0,43206.0,0.00073064]
[1644244790046,0.325891,43212.0,43200.0,1.28e-06]
[1644244790346,1.3,43214.0,43191.0,0.02]
[1644244790347,0.325891,43201.0,43191.0,0.02]
[1644244790543,0.0388,43200.0,43191.0,0.02]
[1644244790945,0.05,43214.0,43191.0,0.02]
[1644244791146,0.05,43214.0,43191.0,0.32]
[1644244791444,0.05,43214.0,43191.0,0.02]
[1644244791692,0.01178469,43216.0,43196.0,0.05]
[1644244791888,0.01178469,43216.0,43202.0,0.21040932]
[1644244791889,0.0208248,43215.0,43202.0,0.21040932]
[1644244792088,0.08955556,43213.0,43192.0,0.05]
[1644244792290,0.08955556,43213.0,43191.0,0.07]
[1644244792291,0.20697874,43204.0,43193.0,0.3]
[1644244792489,0.20697874,43204.0,43191.0,0.07]
[1644244792689,0.20697874,43204.0,43191.0,0.02]
[1644244792690,0.20670019,43204.0,43191.0,0.02]
[1644244793391,0.0388,43213.0,43191.0,0.01459464]
[1644244793592,0.00092101,43214.0,43212.0,0.05]
[1644244793797,0.00092101,43214.0,43213.0,0.35]
[1644244793998,0.00261823,43222.0,43214.0,0.8]
[1644244794194,0.00261823,43222.0,43220.0,0.31971772]
[1644244794391,0.00261823,43222.0,43220.0,0.26971772]
[1644244794591,0.00261823,43222.0,43215.0,0.3]
[1644244794793,0.00261823,43222.0,43215.0,0.05]
[1644244795092,0.00261823,43222.0,43206.0,0.0851]
[1644244795093,0.24072164,43230.0,43207.0,0.3]
[1644244795356,0.24072164,43230.0,43208.0,0.05]
[1644244795357,0.00065461,43224.0,43208.0,0.05]
[1644244795547,0.00227284,43227.0,43209.0,0.8]
[1644244795746,0.00227284,43227.0,43223.0,0.22563615]
[1644244795747,0.37635917,43227.0,43223.0,0.22563615]
[1644244795946,0.00227284,43227.0,43223.0,0.22563615]
[1644244796349,0.02,43249.0,43223.0,0.22563615]
[1644244796546,0.9884,43248.0,43224.0,0.3]
[1644244796746,0.9884,43248.0,43213.0,0.35]
[1644244796747,0.02147704,43230.0,43213.0,0.35]
[1644244797148,0.02147704,43230.0,43213.0,0.3]
[1644244797347,0.02147704,43230.0,43214.0,0.05]
[1644244797548,0.02147704,43230.0,43207.0,0.02123329]
[1644244797549,0.02147704,43230.0,43215.0,0.28352241]
[1644244797746,0.02147704,43230.0,43215.0,0.2012796]
[1644244797747,0.26859968,43230.0,43215.0,0.2012796]
[1644244797951,0.26859968,43230.0,43213.0,0.01973367]
[1644244797952,0.06408808,43220.0,43213.0,0.01973367]
[1644244798350,0.36902791,43223.0,43213.0,0.01973367]
[1644244798747,0.36902791,43223.0,43216.0,0.00073052]
[1644244798950,0.23768059,43219.0,43216.0,0.00073052]
[1644244799395,0.07356469,43218.0,43216.0,0.00073052]
[1644244799592,0.23768059,43219.0,43216.0,0.00073052]
[1644244799793,0.36902791,43223.0,43215.0,0.00105849]
[1644244799992,0.36902791,43223.0,43215.0,0.00178902]
[1644244799993,0.30197782,43216.0,43215.0,0.00178902]
[1644244800199,0.8,43224.0,43201.0,0.3]
[1644244800399,0.9884,43213.0,43193.0,0.0029236]
[1644244800598,0.9884,43203.0,43193.0,0.0029236]
[1644244800795,0.20717784,43194.0,43193.0,0.0029236]
[1644244800993,0.0388,43202.0,43191.0,0.00011824]
[1644244801196,0.38354749,43195.0,43191.0,0.00011824]
[1644244801395,0.325891,43194.0,43191.0,0.00011824]
[1644244801600,0.325891,43194.0,43165.0,0.19391546]
[1644244801601,2.1272,43193.0,43165.0,0.19391546]
[1644244801906,2.1272,43193.0,43158.0,0.19391546]
[1644244801907,0.9884,43181.0,43158.0,0.19391546]
[1644244802093,0.9884,43181.0,43156.0,0.1]
[1644244802094,0.9884,43179.0,43161.0,0.02]
[1644244802294,0.0388,43178.0,43171.0,0.23897129]
[1644244802493,0.0388,43187.0,43171.0,0.22897129]
[1644244802695,0.0388,43187.0,43176.0,0.05]
[1644244802960,0.0388,43187.0,43186.0,0.05]
[1644244803159,0.05,43201.0,43186.0,0.05]
[1644244803355,0.3,43207.0,43183.0,0.26026175]
[1644244803356,0.33413887,43199.0,43183.0,0.26026175]
[1644244803556,0.08021171,43194.0,43180.0,0.37466698]
[1644244803759,0.08021171,43194.0,43191.0,0.00072792]
[1644244804161,0.00066129,43196.0,43191.0,0.00072792]
[1644244804360,0.00066129,43196.0,43195.0,0.05]
[1644244804561,0.00066129,43196.0,43195.0,0.35]
[1644244804760,0.01871511,43225.0,43195.0,0.35]
[1644244804961,0.01871511,43225.0,43207.0,0.05]
[1644244804962,0.05,43209.0,43207.0,0.05]
[1644244805155,0.27632343,43214.0,43207.0,0.05]
[1644244805360,0.27632343,43214.0,43200.0,0.05]
[1644244805361,0.05,43212.0,43200.0,0.05]
[1644244805758,0.05,43212.0,43188.0,0.3]
[1644244805759,0.25417555,43208.0,43188.0,0.3]
[1644244805962,0.25417555,43208.0,43179.0,0.05]
[1644244805963,0.3,43207.0,43179.0,0.05]
[1644244806159,0.05,43203.0,43179.0,0.05]
[1644244806360,0.05,43203.0,43186.0,0.05]
[1644244806361,0.38346304,43198.0,43186.0,0.05]
[1644244806611,0.38346304,43198.0,43178.0,0.05]
[1644244806812,0.3,43197.0,43179.0,0.05]
[1644244807209,0.05,43192.0,43189.0,0.05]
[1644244807408,0.05,43192.0,43190.0,0.21707197]
[1644244807607,0.05,43192.0,43191.0,0.05]
[1644244807808,0.05,43192.0,43190.0,0.21707197]
[1644244808411,0.05,43192.0,43190.0,0.05]
[1644244808823,0.00114322,43193.0,43190.0,0.145]
[1644244809010,0.00019856,43195.0,43192.0,0.845]
[1644244809209,0.00019856,43195.0,43194.0,0.05]
[1644244809416,0.00019856,43195.0,43189.0,0.05]
[1644244809611,0.05,43198.0,43189.0,0.05]
[1644244809809,0.00019857,43197.0,43180.0,0.41002457]
[1644244810014,0.00019857,43197.0,43196.0,0.05]
[1644244810210,0.00019857,43197.0,43186.0,0.02161394]
[1644244810653,0.05,43198.0,43186.0,0.26661139]
[1644244811050,0.05,43198.0,43186.0,0.02161394]
[1644244811253,0.24770903,43194.0,43191.0,6e-05]
[1644244811552,0.12299123,43198.0,43191.0,6e-05]
[1644244811553,0.05,43198.0,43191.0,6e-05]
[1644244812251,0.05,43198.0,43191.0,0.00058911]
[1644244812252,0.34417781,43194.0,43191.0,0.00058911]
[1644244812452,0.34417781,43194.0,43192.0,0.23152]
[1644244812653,0.34417781,43194.0,43192.0,0.36484]
[1644244812864,0.34417781,43194.0,43190.0,0.08448911]
[1644244812865,0.25692765,43193.0,43190.0,0.08448911]
[1644244813053,0.34417781,43194.0,43182.0,0.02024018]
[1644244813054,0.325891,43192.0,43182.0,0.02024018]
[1644244813252,0.34417781,43194.0,43182.0,0.02024018]
[1644244813453,0.34417781,43194.0,43182.0,0.06524018]
[1644244813454,0.05,43189.0,43182.0,0.06524018]
[1644244813852,0.35540583,43187.0,43182.0,0.02024018]
[1644244814090,0.35540583,43187.0,43174.0,0.01825637]
[1644244814091,0.8,43186.0,43174.0,0.01825637]
[1644244814292,0.8,43186.0,43161.0,0.02]
[1644244814293,0.8,43184.0,43161.0,0.02]
[1644244814496,0.346091,43183.0,43161.0,0.02]
[1644244814689,0.01825637,43175.0,43161.0,0.02]
[1644244814891,0.01825637,43175.0,43168.0,0.23535933]
[1644244815090,0.01825637,43175.0,43169.0,0.3]
[1644244815292,0.01825637,43175.0,43173.0,0.05]
[1644244815491,0.01825637,43175.0,43169.0,0.3]
[1644244815791,0.01825637,43175.0,43168.0,0.23035933]
[1644244815990,0.01825637,43175.0,43169.0,0.3]
[1644244816391,0.05,43177.0,43170.0,1.07733215]
[1644244816692,0.06986393,43194.0,43178.0,0.34852421]
[1644244816693,0.05,43188.0,43178.0,0.34852421]
[1644244816890,0.05,43188.0,43179.0,0.3]
[1644244817094,0.05,43188.0,43173.0,0.08427865]
[1644244817291,0.05,43188.0,43183.0,0.24832915]
[1644244817490,0.05,43188.0,43179.0,0.05]
[1644244817692,0.05,43188.0,43171.0,0.3007247]
[1644244817947,0.05,43185.0,43171.0,0.35]
[1644244818146,0.05,43185.0,43177.0,0.00072463]
[1644244818344,0.28345712,43185.0,43177.0,0.00072463]
[1644244818545,0.05,43188.0,43187.0,0.19227382]
[1644244820148,0.00066204,43194.0,43187.0,0.19227382]
[1644244820347,0.01826955,43197.0,43187.0,0.24227382]
[1644244820647,0.00066209,43194.0,43188.0,0.0007245]
[1644244821691,0.05,43192.0,43179.0,0.02108695]
[1644244821893,0.05,43192.0,43189.0,0.00052583]
[1644244822492,0.05,43196.0,43189.0,0.00052583]
[1644244822691,0.05,43196.0,43193.0,0.24984374]
[1644244823092,0.05,43196.0,43193.0,0.05]
[1644244823093,0.00065988,43195.0,43193.0,0.05]
[1644244823294,0.00065988,43195.0,43189.0,0.00072383]
[1644244824097,0.05,43191.0,43183.0,0.02114914]
[1644244824395,0.05,43196.0,43183.0,0.02114914]
[1644244824396,0.05,43184.0,43183.0,0.02114914]
[1644244824597,0.8,43183.0,43165.0,0.19391546]
[1644244824900,0.8,43183.0,43161.0,0.02]
[1644244824901,0.05,43177.0,43161.0,0.02]
[1644244825094,0.05,43174.0,43161.0,0.25169]
[1644244825347,0.05,43177.0,43168.0,0.19556513]
[1644244825540,0.05,43180.0,43168.0,0.19556513]
[1644244825740,0.35865431,43175.0,43167.0,0.00072251]
[1644244826043,0.05,43168.0,43167.0,0.00072251]
[1644244826440,0.77865431,43175.0,43161.0,0.02]
[1644244826840,0.42,43175.0,43169.0,0.21735871]
[1644244827046,0.42,43175.0,43170.0,0.3]
[1644244827241,0.01872283,43183.0,43170.0,0.05]
[1644244827445,0.01872283,43183.0,43170.0,0.3]
[1644244827640,0.05,43179.0,43169.0,0.26735871]
[1644244827841,0.26355886,43178.0,43169.0,0.26735871]
[1644244828443,0.3,43177.0,43161.0,0.02]
[1644244828746,0.05,43168.0,43161.0,0.02]
[1644244828942,0.07288792,43169.0,43161.0,0.02]
[1644244829192,0.05,43167.0,43161.0,0.02]
[1644244829395,0.05,43167.0,43162.0,0.23834375]
[1644244829891,0.05,43167.0,43162.0,0.32064]
[1644244830096,0.06852701,43167.0,43162.0,0.32064]
[1644244830392,0.06852701,43167.0,43162.0,0.32116225]
[1644244830791,0.06852701,43167.0,43162.0,0.32126228]
[1644244830995,0.11852701,43167.0,43162.0,0.32126228]
[1644244831196,0.06852701,43167.0,43162.0,0.45468228]
[1644244831394,0.06852701,43167.0,43164.0,0.249841]
[1644244831595,0.05,43176.0,43166.0,0.8]
[1644244831796,0.143209,43208.0,43167.0,0.53165]
[1644244831797,0.25557354,43187.0,43167.0,0.53165]
[1644244831995,0.25557354,43187.0,43167.0,0.6706]
[1644244831996,0.05,43172.0,43167.0,0.6706]
[1644244832196,0.00019769,43194.0,43172.0,0.07822819]
[1644244832197,0.05,43188.0,43172.0,0.07822819]
[1644244832395,0.05,43188.0,43173.0,0.3]
[1644244832598,0.05,43183.0,43173.0,0.35]
[1644244832843,0.05,43183.0,43173.0,0.4]
[1644244833038,0.05,43183.0,43182.0,0.24879304]
[1644244833236,0.05,43183.0,43182.0,0.29879304]
[1644244834237,0.05,43183.0,43182.0,0.05]
[1644244834440,0.05,43197.0,43181.0,0.1]
[1644244834639,0.002,43211.0,43175.0,0.8]
[1644244834640,0.05,43192.0,43175.0,0.8]
[1644244834940,0.05,43192.0,43172.0,0.07822819]
[1644244834941,0.3,43191.0,43172.0,0.07822819]
[1644244835146,0.05,43189.0,43181.0,0.00052144]
[1644244835338,0.325891,43187.0,43181.0,0.00052144]
[1644244835537,0.364691,43187.0,43181.0,0.00052144]
[1644244835739,0.514691,43187.0,43181.0,0.00052144]
[1644244835939,0.325891,43185.0,43181.0,0.00052144]
[1644244836139,0.8,43184.0,43172.0,0.07451261]
[1644244836340,0.57556405,43173.0,43172.0,0.07451261]
[1644244836591,0.15,43184.0,43172.0,0.07451261]
[1644244836592,0.0999,43175.0,43172.0,0.07451261]
[1644244836794,0.05,43180.0,43172.0,0.07451261]
[1644244837391,0.21506275,43175.0,43172.0,0.07451261]
[1644244837590,0.05,43180.0,43172.0,0.07451261]
[1644244837591,0.34508422,43176.0,43172.0,0.07451261]
[1644244837793,0.05,43180.0,43172.0,0.07451261]
[1644244838192,0.05,43180.0,43173.0,0.26938573]
[1644244838392,0.05,43180.0,43172.0,0.07451261]
[1644244838591,0.25370004,43178.0,43172.0,0.06951261]
[1644244838790,0.37471254,43176.0,43172.0,0.06451261]
[1644244839591,0.25370004,43178.0,43172.0,0.06451261]
[1644244839794,0.05,43180.0,43172.0,0.06451261]
[1644244839990,0.05,43180.0,43172.0,0.06523146]
[1644244840643,0.26738686,43175.0,43172.0,0.06523146]
[1644244840947,0.06364867,43177.0,43172.0,0.06451261]
[1644244841144,0.21852345,43173.0,43172.0,0.06451261]
[1644244841343,0.52493466,43173.0,43172.0,0.06451261]
[1644244841541,0.05,43180.0,43172.0,0.06451261]
[1644244841746,0.05,43180.0,43173.0,0.3]
[1644244841944,0.05,43180.0,43172.0,0.01451261]
[1644244842343,0.05,43180.0,43174.0,0.00071883]
[1644244842946,0.59562188,43175.0,43174.0,0.00071883]
[1644244843143,0.36287454,43175.0,43174.0,0.00071883]
[1644244843344,0.36287454,43175.0,43172.0,0.01451261]
[1644244843543,0.36287454,43175.0,43172.0,0.01523145]
[1644244844391,0.36287454,43175.0,43166.0,0.00287581]
[1644244844392,0.56698509,43174.0,43166.0,0.00287581]
[1644244844595,0.56698509,43174.0,43163.0,0.01957336]
[1644244844596,0.063065,43168.0,43163.0,0.01957336]
[1644244844791,0.8,43173.0,43163.0,0.01957336]
[1644244844792,0.325891,43167.0,43163.0,0.01957336]
[1644244844991,0.05,43169.0,43163.0,0.01957336]
[1644244845190,0.69354537,43168.0,43163.0,0.01957336]
[1644244845389,0.36765437,43168.0,43163.0,0.01957336]
[1644244845593,0.2679623,43165.0,43163.0,0.01957336]
[1644244845995,0.325891,43164.0,43163.0,0.01957336]
[1644244846392,0.06476786,43163.0,43162.0,0.00010003]
[1644244846592,0.05,43165.0,43162.0,0.00010003]
[1644244846793,0.325891,43163.0,43162.0,0.00010003]
[1644244847193,0.425891,43163.0,43162.0,0.00010003]
[1644244847494,0.57826661,43161.0,43154.0,0.02025893]
[1644244847692,0.325891,43156.0,43154.0,0.02025893]
[1644244847947,0.325852,43155.0,43154.0,0.02025893]
[1644244848349,0.97325609,43155.0,43153.0,0.01921731]
[1644244848550,0.30964155,43155.0,43153.0,0.01921731]
[1644244849453,0.56088374,43155.0,43153.0,0.01921731]
[1644244849650,0.57638921,43154.0,43153.0,0.01921731]
[1644244849850,0.8,43153.0,43149.0,0.00073659]
[1644244850052,0.364652,43152.0,43149.0,0.00073659]
[1644244850450,0.325852,43150.0,43149.0,0.00014458]
[1644244850654,0.364652,43150.0,43149.0,0.00014458]
[1644244850852,0.464652,43150.0,43149.0,0.00014458]
[1644244851252,0.464652,43150.0,43149.0,4.58e-06]
[1644244851254,0.514652,43150.0,43149.0,4.58e-06]
[1644244851453,1.503052,43150.0,43149.0,4.58e-06]
[1644244851692,1.503052,43150.0,43131.0,0.02]
[1644244851693,0.05,43141.0,43131.0,0.02]
[1644244851896,0.42923033,43139.0,43131.0,0.02]
[1644244852091,0.42923033,43139.0,43130.0,0.08903]
[1644244852092,0.0388,43138.0,43130.0,0.08903]
[1644244852290,0.05,43132.0,43130.0,0.08903]
[1644244852494,0.0388,43131.0,43130.0,0.08903]
[1644244852691,0.0388,43131.0,43130.0,0.714882]
[1644244853091,0.0388,43131.0,43130.0,1.25769933]
[1644244853294,0.0388,43131.0,43130.0,1.10469845]
[1644244853493,0.05,43132.0,43130.0,0.80469845]
[1644244853694,0.05,43149.0,43131.0,0.75262963]
[1644244853895,0.0999,43156.0,43134.0,0.05]
[1644244853896,0.05,43143.0,43134.0,0.05]
[1644244854096,0.02177595,43136.0,43135.0,0.320852]
[1644244854293,0.02177595,43136.0,43135.0,0.370852]
[1644244855942,0.05,43143.0,43136.0,0.82177]
[1644244856142,2.70625482,43171.0,43142.0,0.05]
[1644244856342,0.05,43161.0,43146.0,0.05]
[1644244856543,0.05,43175.0,43161.0,0.26812394]
[1644244856742,0.05,43172.0,43163.0,0.370622]
[1644244856940,0.05,43172.0,43167.0,0.05]
[1644244857145,0.05,43172.0,43161.0,0.26812394]
[1644244857146,0.36985233,43168.0,43161.0,0.26812394]
[1644244857343,0.36985233,43168.0,43162.0,0.370626]
[1644244858143,0.000669,43167.0,43162.0,0.370626]
[1644244858945,0.05,43172.0,43166.0,0.05]
[1644244859195,0.05,43172.0,43171.0,0.05]
[1644244859395,0.05,43172.0,43171.0,0.370552]
[1644244859594,0.05,43172.0,43171.0,0.420552]
[1644244859895,0.05,43172.0,43171.0,0.1]
[1644244860294,0.05,43172.0,43166.0,0.05]
[1644244860794,0.05,43172.0,43164.0,0.320608]
[1644244860993,0.05,43172.0,43171.0,0.05]
[1644244861993,0.05,43172.0,43171.0,0.045]
[1644244862194,0.05,43172.0,43167.0,0.29604674]
[1644244862596,0.35957544,43172.0,43162.0,0.02195991]
[1644244862851,0.005,43163.0,43162.0,0.02195991]
[1644244863041,0.07128891,43163.0,43162.0,0.02195991]
[1644244863441,0.59825207,43163.0,43162.0,0.02195991]
[1644244863641,0.53196316,43163.0,43150.0,0.21848049]
[1644244863944,0.02695991,43163.0,43156.0,0.045]
[1644244864143,0.02195991,43163.0,43162.0,0.045]
[1644244864342,0.02195991,43163.0,43162.0,0.365631]
[1644244864741,0.02195991,43163.0,43162.0,0.60852745]
[1644244865042,0.02195991,43163.0,43162.0,0.365631]
[1644244865241,0.02195991,43163.0,43157.0,0.045]
[1644244865441,0.02195991,43163.0,43150.0,0.10072051]
[1644244865642,0.02195991,43163.0,43162.0,0.045]
[1644244865941,0.02195991,43163.0,43158.0,0.045]
[1644244867295,0.02195991,43163.0,43162.0,0.045]
[1644244867493,0.02195991,43163.0,43162.0,0.365631]
[1644244867892,0.00020127,43164.0,43162.0,0.365631]
[1644244868092,0.00020127,43164.0,43163.0,0.320623]
[1644244868495,0.05,43176.0,43163.0,0.670623]
[1644244868496,0.01927291,43172.0,43163.0,0.670623]
[1644244868693,0.01927291,43172.0,43171.0,0.045]
[1644244868893,0.01927291,43172.0,43171.0,0.365552]
[1644244869095,0.00927291,43172.0,43171.0,0.415552]
[1644244869299,0.00927291,43172.0,43171.0,0.72431162]
[1644244870947,0.00927291,43172.0,43171.0,0.425552]
[1644244871744,0.00927291,43172.0,43171.0,0.475552]
[1644244871940,0.05,43175.0,43172.0,0.8]
[1644244872139,0.05,43175.0,43174.0,0.045]
[1644244872339,0.02,43179.0,43174.0,0.365526]
[1644244872548,0.001,43198.0,43179.0,0.8]
[1644244872742,0.046,43192.0,43188.0,0.045]
[1644244872943,0.001,43198.0,43192.0,0.8]
[1644244873147,0.001,43198.0,43197.0,0.045]
[1644244874397,0.00020273,43200.0,43199.0,0.320306]
[1644244874592,0.05,43203.0,43201.0,1.120288]
[1644244874790,0.05,43203.0,43202.0,0.045]
[1644244874992,0.0181766,43207.0,43203.0,0.23567107]
[1644244874993,0.41224281,43204.0,43203.0,0.23567107]
[1644244875293,0.0181766,43207.0,43204.0,0.32026]
[1644244875490,0.0181766,43207.0,43206.0,0.365243]
[1644244875690,0.34875942,43207.0,43206.0,0.415243]